[Event "Romanian-ch Youth Open U12 2024"]
[Site "Eforie Nord"]
[Date "2024.04.13"]
[Round "3.2"]
[White "Dunca, Patrick-David"]
[Black "Petroff, Vlad"]
[Result "0-1"]
[ECO "A45"]
[WhiteElo "1762"]
[BlackElo "1999"]
[Annotator "RC"]
[PlyCount "70"]
[EventDate "2024.04.10"]
[EventType "swiss"]
[EventCountry "ROU"]
[SourceTitle "playchess.com"]
[Source "ChessBase"]
[SourceQuality "1"]
[TimeControl "5400+30"]

1. d4 {[%emt 0:00:03]} Nf6 {[%emt 0:00:04]} 2. Bg5 {[%emt 0:00:09]} e6 {[%emt 0:00:16]} 3. e4 {[%emt 0:00:09]} h6 {[%emt 0:00:13]} 4. Bxf6 {[%emt 0:00:08]} Qxf6 {[%emt 0:00:18]} 5. c3 {[%emt 0:00:09]} d6 {[%emt 0:00:51]} 6. Nf3 {[%emt 0:00:18]} g5 {[%emt 0:02:08]} 7. Be2 {[%emt 0:05:34]} g4 {[%emt 0:01:13]} 8. Nfd2 {[%emt 0:00:13]} h5 {[%emt 0:00:06]} 9. h3 {[%emt 0:01:36]} Bh6 {[%emt 0:12:34]} 10. Na3 {[%emt 0:06:58]} a6 {[%emt 0:04:07]} 11. Nac4 {[%emt 0:13:18]} e5 {[%emt 0:01:28]} 12. dxe5 {[%emt 0:01:36]} dxe5 {[%emt 0:00:53]} 13. hxg4 {[%emt 0:08:27]} hxg4 {[%emt 0:00:35]} 14. Nb3 {[%emt 0:02:15]} Be6 {[%emt 0:13:11]} 15. Nc5 {[%emt 0:10:25]} Nc6 {[%emt 0:24:29]} 16. Nxe6 {[%emt 0:06:47]} Qxe6 {[%emt 0:03:14]} 17. Qd5 {[%emt 0:02:11]} Qe7 {[%emt 0:06:09]} 18. Ne3 {[%emt 0:01:50]} Rd8 {[%emt 0:03:45]} 19. Qb3 {[%emt 0:01:08]} g3 {[%emt 0:05:12]} 20. Nd5 {[%emt 0:23:49]} Qc5 {[%emt 0:05:00]} 21. fxg3 {[%emt 0:02:15]} Ne7 {[%emt 0:04:16]} 22. Qc4 {[%emt 0:07:15]} Qxc4 23. Bxc4 {[%emt 0:00:01]} Nxd5 {[%emt 0:05:23]} 24. exd5 {[%emt 0:00:39]} Ke7 {[%emt 0:00:27]} 25. Ke2 {[%emt 0:01:04]} Rdg8 {[%emt 0:00:51]} 26. Kf3 {[%emt 0:00:58]} Kd6 {[%emt 0:00:33]} 27. g4 {[%emt 0:02:14]} e4+ {[%emt 0:00:53]} 28. Kxe4 {[%emt 0:01:55]} Rxg4+ {[%emt 0:00:04]} 29. Kd3 {[%emt 0:00:48]} Rg3+ {[%emt 0:01:03]} 30. Ke4 {[%emt 0:00:44]} Rxg2 {[%emt 0:00:13]} 31. Rh4 {[%emt 0:00:29]} Rg3 {[%emt 0:03:25]} 32. Rah1 {[%emt 0:00:33]} Re8+ {[%emt 0:00:17]} 33. Kf5 {[%emt 0:00:27]} Re5+ {[%emt 0:00:26]} 34. Kf6 {[%emt 0:00:11]} Rf3+ {[%emt 0:00:15]} 35. Rf4 {[%emt 0:00:07]} Rxf4# {[%emt 0:04:08]} 0-1

[Event "Romanian-ch Youth Open U12 2024"]
[Site "Eforie Nord"]
[Date "2024.04.14"]
[Round "4.1"]
[White "Rusu, Lucas"]
[Black "Negrean, Andrei"]
[Result "0-1"]
[ECO "B50"]
[WhiteElo "1924"]
[BlackElo "2250"]
[Annotator "TA"]
[PlyCount "56"]
[EventDate "2024.04.10"]
[EventType "swiss"]
[EventCountry "ROU"]
[SourceTitle "playchess.com"]
[Source "ChessBase"]
[SourceQuality "1"]
[TimeControl "5400+30"]

{[%evp 18,56,-45,-43,-31,-38,-34,-33,-29,-67,-66,-83,-91,-271,-275,-367,-226,-522,-512,-821,-824,-1798,-1610,-1902,-1782,-1822,-1866,-29991,-29992,-29992,-29993,-29993,-29994,-29994,-29995,-29995,-29993,-29996,-29995,-29997,-29998]} 1. e4 {[%emt 0:00:01]} c5 {[%emt 0:00:07]} 2. Nf3 {[%emt 0:00:08]} d6 {[%emt 0:00:11]} 3. c3 {[%emt 0:01:33]} Nf6 {[%emt 0:00:16]} 4. Be2 {[%emt 0:00:09]} g6 {[%emt 0:00:24]} 5. O-O {[%emt 0:00:09]} Bg7 {[%emt 0:00:05]} 6. Re1 {[%emt 0:00:27]} O-O {[%emt 0:00:17]} 7. Bf1 {[%emt 0:00:19]} Nc6 {[%emt 0:01:08]} 8. h3 {[%emt 0:05:05]} e5 {[%emt 0:00:31]} 9. d4 {[%emt 0:08:31]} exd4 {[%emt 0:01:23]} 10. cxd4 {[%emt 0:00:02]} Nxd4 {[%emt 0:00:22]} 11. Nxd4 {[%emt 0:00:08]} cxd4 {[%emt 0:00:01]} 12. Qxd4 {[%emt 0:02:18]} Re8 {[%emt 0:01:29][%cal Of6e4] Black is slightly better.} 13. Qd3 {[%emt 0:31:17]} Bf5 {[%emt 0:05:41]} 14. f3 {[%emt 0:02:41]} d5 {[%emt 0:01:12][%cal Rd5e4]} 15. g4 $2 {[%emt 0:04:01] [#]} (15. Nc3 $17 dxe4 16. Qxd8 Raxd8 17. Be3) 15... Qc7 $19 {[%emt 0:05:08]} ({Stronger than} 15... dxe4 16. Qxd8 Raxd8 17. gxf5 $16) 16. Bg2 {[%emt 0:04:01]} Qg3 {[%emt 0:10:51]} 17. Re3 {[%emt 0:00:58]} (17. Rd1 dxe4 18. fxe4 Qxd3 19. Rxd3 Bxe4 (19... Nxe4 $2 {loses.} 20. gxf5 Rad8 21. Rxd8 $18) 20. Bxe4) 17... d4 {[%emt 0:02:56]} ({Weaker is} 17... dxe4 18. fxe4 Bxe4 (18... Qc7 19. Nc3 $17) 19. Rxg3 $17) 18. Re2 {[%emt 0:02:03] [#]} (18. gxf5 $142 dxe3 19. Qe2) 18... Bxe4 $1 {[%emt 0:01:14][%mdl 512]} 19. Qb3 {[%emt 0:01:05]} (19. Qd2 Bxb1) 19... Bxb1 {[%emt 0:00:52]} 20. Qd1 {[%emt 0:01:35]} Rxe2 {[%emt 0:00:07]} 21. Qxe2 {[%emt 0:00:01]} Re8 {[%emt 0:00:13]} 22. Qf2 {[%emt 0:00:53]} Re1+ {[%emt 0:00:08] Black mates.} 23. Qxe1 {[%emt 0:00:08]} Qxe1+ {[%emt 0:00:01]} 24. Kh2 {[%emt 0:00:01]} Nxg4+ {[%emt 0:00:15]} 25. hxg4 {[%emt 0:00:07]} Qxc1 {[%emt 0:00:12]} 26. Rxb1 {[%emt 0:00:11]} Qxb1 {[%emt 0:00:08]} 27. Kg3 {[%emt 0:00:05]} Be5+ {[%emt 0:00:05]} 28. f4 {[%emt 0:00:03]} Qe1+ {[%emt 0:00:03] White did not feel at home in the position after the opening.   Weighted Error Value: White=1.57/Black=0.15 (very precise) .  Loses game:     	White=1     	---        Mistake:       	White=2     	---        Inaccurate:     	White=3     	Black=1      OK:         	---       	Black=3      Best:        	---       	Black=2      Brilliant:      	---       	Black=1} 0-1

[Event "Romanian-ch Youth Open U12 2024"]
[Site "Eforie Nord"]
[Date "2024.04.14"]
[Round "4.2"]
[White "Petroff, Vlad"]
[Black "Stanica, Andrei"]
[Result "0-1"]
[ECO "D36"]
[WhiteElo "1999"]
[BlackElo "1977"]
[Annotator "NA RC"]
[PlyCount "96"]
[EventDate "2024.04.10"]
[EventType "swiss"]
[EventCountry "ROU"]
[SourceTitle "playchess.com"]
[Source "ChessBase"]
[SourceQuality "1"]
[TimeControl "5400+30"]

1. d4 {[%emt 0:00:08]} d5 {[%emt 0:00:07]} 2. c4 {[%emt 0:00:10]} e6 {[%emt 0:00:02]} 3. Nc3 {[%emt 0:00:18]} Nf6 {[%emt 0:00:02]} 4. cxd5 {[%emt 0:00:12]} exd5 {[%emt 0:00:05]} 5. Bg5 {[%emt 0:00:37]} Be7 {[%emt 0:00:07]} 6. e3 {[%emt 0:00:25]} c6 {[%emt 0:00:16]} 7. Bd3 {[%emt 0:01:07]} Nbd7 {[%emt 0:00:08]} 8. Nge2 {[%emt 0:00:44]} Nf8 {[%emt 0:00:10]} 9. Bh4 {[%emt 0:00:48]} Ne6 {[%emt 0:00:13]} 10. Qc2 {[%emt 0:00:58]} g6 {[%emt 0:00:09]} 11. f3 {[%emt 0:01:14]} O-O {[%emt 0:00:11]} 12. O-O-O {[%emt 0:00:24]} b5 {[%emt 0:00:47]} 13. g4 {[%emt 0:01:19] D36: Queen's Gambit Declined: Exchange Variation: Main line (5 Bg5 c6 6 Qc2).} a5 {[%emt 0:01:05]} 14. Bg3 {[%emt 0:01:49]} Bd6 {[%emt 0:14:22]} 15. h4 {[%emt 0:02:55]} Ba6 {[%emt 0:04:34]} 16. h5 {[%emt 0:03:29]} b4 {[%emt 0:12:48]} 17. Na4 {[%emt 0:00:47]} Bxd3 {[%emt 0:00:40]} 18. Qxd3 {[%emt 0:00:29]} Bxg3 {[%emt 0:06:52]} 19. Nxg3 {[%emt 0:00:06]} Qd6 {[%emt 0:03:24]} 20. Rdg1 {[%emt 0:02:02]} c5 {[%emt 0:04:22]} 21. dxc5 {[%emt 0:00:37]} Nxc5 {[%emt 0:00:16]} 22. Nxc5 {[%emt 0:00:08]} Qxc5+ {[%emt 0:00:08]} 23. Kb1 {[%emt 0:00:06]} Rfe8 {[%emt 0:02:07]} 24. Re1 {[%emt 0:05:40]} a4 {[%emt 0:13:16]} 25. g5 {[%emt 0:03:39]} Nd7 {[%emt 0:00:28]} 26. hxg6 {[%emt 0:02:05]} fxg6 {[%emt 0:02:28]} 27. Rc1 {[%emt 0:10:03]} Qd6 {[%emt 0:06:14]} 28. Qd4 {[%emt 0:02:22]} Re7 {[%emt 0:08:18]} 29. e4 {[%emt 0:05:18]} Rf8 {[%emt 0:03:53]} 30. Nf1 {[%emt 0:07:55]} Rxf3 {[%emt 0:02:34]} 31. exd5 {[%emt 0:00:50]} Nf8 {[%emt 0:05:37]} 32. Nd2 {[%emt 0:01:31]} Rf4 {[%emt 0:01:11]} 33. Qd3 {[%emt 0:00:15]} Qe5 {[%emt 0:04:40]} 34. Rhf1 {[%emt 0:16:01]} Rd4 {[%emt 0:04:12]} 35. Rc8 {[%emt 0:12:53]} Qe1+ {[%emt 0:01:03]} 36. Kc2 {[%emt 0:01:21]} b3+ {[%emt 0:00:24]} 37. axb3 {[%emt 0:00:48]} axb3+ {[%emt 0:00:05]} 38. Nxb3 {[%emt 0:02:57]} Re2+ {[%emt 0:00:11]} 39. Nd2 {[%emt 0:00:20]} Rxd2+ {[%emt 0:00:06]} 40. Qxd2 {[%emt 0:01:13]} Rxd2+ {[%emt 0:00:12]} 41. Kc3 {[%emt 0:00:10]} Qe3+ {[%emt 0:00:39]} 42. Kb4 {[%emt 0:00:09]} Rxb2+ {[%emt 0:00:06]} 43. Kc4 {[%emt 0:00:13]} Rc2+ {[%emt 0:00:15]} 44. Kb4 {[%emt 0:00:04]} Rxc8 {[%emt 0:00:08]} 45. Rd1 {[%emt 0:00:07]} Qc3+ {[%emt 0:00:04]} 46. Kb5 {[%emt 0:00:05]} Rb8+ {[%emt 0:00:03]} 47. Ka4 {[%emt 0:00:07]} Rb4+ {[%emt 0:00:04]} 48. Ka5 {[%emt 0:00:04]} Qa3# {[%emt 0:00:04]} 0-1

[Event "Romanian-ch Youth Open U12 2024"]
[Site "Eforie Nord"]
[Date "2024.04.15"]
[Round "5.1"]
[White "Negrean, Andrei"]
[Black "Stanica, Andrei"]
[Result "1-0"]
[ECO "E17"]
[WhiteElo "2250"]
[BlackElo "1977"]
[Annotator "TA"]
[PlyCount "117"]
[EventDate "2024.04.10"]
[EventType "swiss"]
[EventCountry "ROU"]
[SourceTitle "playchess.com"]
[Source "ChessBase"]
[SourceQuality "1"]
[TimeControl "5400+30"]

{[%evp 19,117,12,12,15,20,0,0,0,0,0,0,6,0,4,29,-16,0,-29,-15,-33,0,-24,-3,-24,-35,-21,0,0,36,0,35,23,28,18,29,10,34,9,27,28,19,23,104,109,121,122,155,155,142,158,158,126,232,213,325,325,307,293,623,623,600,468,807,782,1081,1068,1010,1007,1144,903,1607,1372,1700,1627,1597,1637,1512,1427,2083,1950,1597,1556,1755,2239,3839,2582,12841,6989,29973,29972,29975,29976,29976,29979,29979,29980,29980,29979,29978,29979]} 1. Nf3 {[%emt 0:00:05]} d5 {[%emt 0:00:12]} 2. g3 {[%emt 0:00:07]} Nf6 {[%emt 0:00:07]} 3. Bg2 {[%emt 0:00:09]} e6 {[%emt 0:00:06]} 4. O-O {[%emt 0:00:15]} Be7 {[%emt 0:00:11]} 5. c4 {[%emt 0:00:17]} O-O {[%emt 0:00:17]} 6. b3 {[%emt 0:00:28]} b6 {[%emt 0:00:45]} 7. Bb2 {[%emt 0:00:11]} Bb7 {[%emt 0:00:29]} 8. cxd5 {[%emt 0:00:12]} exd5 {[%emt 0:00:14]} 9. d4 {[%emt 0:00:43]} Nbd7 {[%emt 0:02:55]} 10. Nbd2 {[%emt 0:02:53]} c5 {[%emt 0:02:08]} 11. Rc1 {[%emt 0:02:35]} Rc8 {[%emt 0:00:51]} 12. dxc5 {[%emt 0:03:08]} bxc5 {[%emt 0:00:05]} 13. Qc2 {[%emt 0:02:06] The position is equal.} Qb6 {[%emt 0:16:10]} 14. Qb1 {[%emt 0:03:23]} Rfd8 {[%emt 0:01:18]} 15. Rfd1 {[%emt 0:01:51]} h6 {[%emt 0:05:21]} 16. e3 {[%emt 0:05:54]} Ba8 {[%emt 0:16:54]} 17. Qa1 {[%emt 0:04:13]} Qe6 {[%emt 0:04:31]} 18. Rc2 {[%emt 0:05:17]} Bb7 {[%emt 0:02:47]} 19. Rcc1 {[%emt 0:19:10]} Ba8 {[%emt 0:01:24]} 20. h3 {[%emt 0:05:02]} Bb7 {[%emt 0:03:36]} 21. Ne5 {[%emt 0:03:53]} Nxe5 {[%emt 0:00:53]} 22. Bxe5 {[%emt 0:00:03]} Ne8 {[%emt 0:15:30]} 23. Bb2 {[%emt 0:05:39]} Bf6 {[%emt 0:00:51]} 24. Rc2 {[%emt 0:03:53]} Bxb2 {[%emt 0:06:37]} 25. Qxb2 {[%emt 0:00:09]} Rd7 {[%emt 0:03:56]} 26. Rdc1 {[%emt 0:04:41]} Rdc7 {[%emt 0:00:46]} 27. Qa3 {[%emt 0:06:19]} Qb6 {[%emt 0:00:49]} 28. Qa4 {[%emt 0:07:09]} Nf6 {[%emt 0:02:30]} 29. Qf4 {[%emt 0:01:07]} a5 {[%emt 0:01:28]} 30. h4 {[%emt 0:00:35]} Qb4 {[%emt 0:07:37]} (30... Rd8 $11) 31. Bh3 $16 {[%emt 0:01:30]} Qxf4 {[%emt 0:00:17]} 32. gxf4 {[%emt 0:00:34]} Ra8 {[%emt 0:01:17]} 33. Rxc5 {[%emt 0:00:12]} Rxc5 {[%emt 0:00:12]} 34. Rxc5 {[%emt 0:00:03]} a4 {[%emt 0:00:12]} 35. b4 {[%emt 0:01:24][%cal Bb3b4,Bb4b5][%mdl 32] And now Nf3 would win. White is more active.} a3 {[%emt 0:00:32]} (35... d4 $16) 36. b5 {[%emt 0:01:03]} ({Don't play} 36. Nb3 $6 Ne4) 36... Ne4 {[%emt 0:01:12]} (36... d4 $142 37. Bg2 (37. exd4 Ra4 $18) 37... dxe3 38. fxe3 (38. Bxb7 exd2 39. Bf3 Rd8 $15) 38... Rd8) 37. Nxe4 $18 {[%emt 0:00:03]} dxe4 {[%emt 0:00:06][%mdl 4096] Endgame. KRB-KRB} 38. Bf1 {[%emt 0:04:39] [#] Bc4 is the strong threat.} Rc8 $2 {[%emt 0:01:33]} (38... Re8 39. Bc4 Re7) 39. Rxc8+ {[%emt 0:00:57]} Bxc8 {[%emt 0:00:01] KB-KB} 40. Bc4 {[%emt 0:00:25]} Bb7 {[%emt 0:00:01]} 41. Kf1 {[%emt 0:00:21]} Kf8 {[%emt 0:00:08]} 42. Ke1 {[%emt 0:00:21]} Ke7 {[%emt 0:00:32]} 43. Kd2 {[%emt 0:00:04]} Kd6 {[%emt 0:00:04]} 44. Kc3 {[%emt 0:00:58]} Kc5 {[%emt 0:00:49]} 45. Bxf7 {[%emt 0:00:11]} Kxb5 {[%emt 0:00:38]} 46. Kb3 {[%emt 0:00:02]} Kc5 {[%emt 0:00:46]} 47. Kxa3 {[%emt 0:00:05]} Bc8 {[%emt 0:00:15]} 48. Kb3 {[%emt 0:00:26]} Ba6 {[%emt 0:00:14]} 49. a4 {[%emt 0:01:10]} Be2 {[%emt 0:00:02]} 50. Kc3 {[%emt 0:00:31]} Bd1 {[%emt 0:00:35]} 51. a5 {[%emt 0:00:27]} Kb5 {[%emt 0:00:40]} 52. Kd4 {[%emt 0:00:16]} Kxa5 {[%emt 0:00:06]} 53. Kxe4 {[%emt 0:00:20] [#] Intending f5 and mate.} Kb5 {[%emt 0:00:12]} 54. Ke5 {[%emt 0:00:50] White mates.} Kc5 {[%emt 0:00:13]} 55. f5 {[%emt 0:00:30]} Bc2 {[%emt 0:00:36]} 56. f6 {[%emt 0:00:30]} gxf6+ {[%emt 0:01:03]} 57. Kxf6 {[%emt 0:00:02]} Kd6 {[%emt 0:00:01]} 58. Bg6 {[%emt 0:00:54]} Bd1 {[%emt 0:00:05]} 59. e4 {[%emt 0:00:05] Weighted Error Value: White=0.11 (very precise) /Black=0.58.  Mistake:       	---       	Black=4      Inaccurate:     	White=3     	Black=3      OK:         	White=8     	Black=6      Best:        	White=2     	---} 1-0

[Event "Romanian-ch Youth Open U12 2024"]
[Site "Eforie Nord"]
[Date "2024.04.15"]
[Round "5.2"]
[White "Zlate-Ion, Matei"]
[Black "Voinescu, Marian-David"]
[Result "0-1"]
[ECO "B94"]
[WhiteElo "1869"]
[BlackElo "1756"]
[Annotator "NA RC"]
[PlyCount "120"]
[EventDate "2024.04.10"]
[EventType "swiss"]
[EventCountry "ROU"]
[SourceTitle "playchess.com"]
[Source "ChessBase"]
[SourceQuality "1"]
[TimeControl "5400+30"]

1. e4 {[%emt 0:00:06]} c5 {[%emt 0:10:01]} 2. Nf3 {[%emt 0:00:08]} d6 {[%emt 0:00:08]} 3. d4 {[%emt 0:00:08]} cxd4 {[%emt 0:00:03]} 4. Nxd4 {[%emt 0:00:05]} Nf6 {[%emt 0:00:00]} 5. Nc3 {[%emt 1:32:33]} a6 6. Bg5 {[%emt 0:00:00]} Nbd7 {[%emt 0:00:21]} 7. f4 {[%emt 0:00:00]} b5 {[%emt 0:03:22]} 8. Qe2 {[%emt 0:00:00]} Bb7 {[%emt 0:02:11]} 9. e5 {[%emt 0:00:00]} b4 {[%emt 0:09:45]} 10. exf6 {[%emt 0:00:00]} gxf6 {[%emt 0:08:15]} 11. Nd1 {[%emt 0:00:00]} fxg5 {[%emt 0:00:14]} 12. Ne6 {[%emt 0:00:00]} Qa5 {[%emt 0:06:16]} 13. Nxg5 {[%emt 0:00:00]} Nf6 {[%emt 0:07:52]} 14. b3 {[%emt 0:00:00]} h6 {[%emt 0:01:23]} 15. Nf3 {[%emt 0:00:00]} Bg7 {[%emt 0:03:19]} 16. g3 {[%emt 0:00:00]} Ne4 {[%emt 0:05:27]} 17. Rc1 {[%emt 0:00:00]} Nc3 {[%emt 0:04:11]} 18. Nxc3 {[%emt 0:00:00]} Bxc3+ {[%emt 0:00:02]} 19. Kf2 {[%emt 0:00:00]} Qc5+ {[%emt 0:04:44]} 20. Kg2 {[%emt 0:00:00]} Rc8 {[%emt 0:02:07]} 21. g4 {[%emt 0:00:00]} Rg8 {[%emt 0:03:08]} 22. Kg3 {[%emt 0:00:00]} Qf5 {[%emt 0:08:24]} 23. Bh3 {[%emt 0:00:00]} e5 {[%emt 0:02:11]} 24. fxe5 {[%emt 0:00:00]} dxe5 {[%emt 0:00:52]} 25. Qe3 {[%emt 0:00:00]} Bb2 {[%emt 0:03:30]} 26. Rce1 {[%emt 0:00:00]} Bxf3 {[%emt 0:00:53]} 27. Qxf3 {[%emt 0:11:00]} Qxf3+ {[%emt 0:02:51]} 28. Kxf3 {[%emt 0:00:00]} Rxc2 {[%emt 0:00:24]} 29. Re2 {[%emt 0:00:00]} Rxe2 {[%emt 0:00:50]} 30. Kxe2 {[%emt 0:00:00]} Ke7 {[%emt 0:00:05]} 31. Kd3 {[%emt 0:00:00]} Rc8 {[%emt 0:00:54]} 32. Bg2 {[%emt 0:00:00]} Rd8+ {[%emt 0:03:54]} 33. Kc2 {[%emt 0:00:00]} Rd4 {[%emt 0:00:51]} 34. Bf3 {[%emt 0:00:00]} Rf4 {[%emt 0:00:51]} 35. Be2 {[%emt 0:00:00]} Rf2 {[%emt 0:00:41]} 36. Kd1 {[%emt 0:00:00]} Bc3 {[%emt 0:00:38]} 37. h4 {[%emt 0:00:00]} Kf8 {[%emt 0:03:26]} 38. Rf1 {[%emt 0:00:00]} Rg2 {[%emt 0:01:16]} 39. h5 {[%emt 0:00:00]} Ke7 {[%emt 0:00:38]} 40. Bxa6 {[%emt 0:00:00]} Rxg4 {[%emt 0:00:40]} 41. Rf2 {[%emt 0:00:00]} Rh4 {[%emt 0:00:48]} 42. Be2 {[%emt 0:00:00]} Rd4+ {[%emt 0:00:13]} 43. Kc1 {[%emt 0:00:00]} Rd2 {[%emt 0:00:33]} 44. Rg2 {[%emt 0:00:00]} Rxa2 {[%emt 0:00:15]} 45. Bf3 {[%emt 0:00:00]} Rxg2 {[%emt 0:00:22]} 46. Bxg2 {[%emt 0:00:00]} Kf6 {[%emt 0:00:01]} 47. Bd5 {[%emt 0:00:00]} Ke7 {[%emt 0:00:21]} 48. Be4 {[%emt 0:00:00]} Ke6 {[%emt 0:00:02]} 49. Kd1 {[%emt 0:00:00]} f5 {[%emt 0:00:46]} 50. Bg2 {[%emt 0:00:00]} Kf6 {[%emt 0:00:08]} 51. Bd5 {[%emt 0:00:00]} e4 {[%emt 0:00:08]} 52. Ke2 {[%emt 0:00:00]} Ke5 {[%emt 0:00:02]} 53. Bf7 {[%emt 0:13:00]} f4 {[%emt 0:00:11]} 54. Bg6 {[%emt 0:00:00]} f3+ {[%emt 0:00:03]} 55. Kf2 {[%emt 0:00:00]} Kf4 {[%emt 0:00:01]} 56. Be8 {[%emt 0:00:00]} e3+ {[%emt 0:00:04]} 57. Kf1 {[%emt 0:00:00]} e2+ {[%emt 0:00:01]} 58. Kg1 {[%emt 0:00:00]} e1=Q+ {[%emt 0:00:01]} 59. Kh2 {[%emt 0:00:00]} Qg3+ {[%emt 0:00:03]} 60. Kh1 {[%emt 0:00:00]} Qg2# {[%emt 0:09:49]} 0-1

[Event "Romanian-ch Youth Open U12 2024"]
[Site "Eforie Nord"]
[Date "2024.04.16"]
[Round "6.1"]
[White "Voinescu, Marian-David"]
[Black "Negrean, Andrei"]
[Result "0-1"]
[ECO "C07"]
[WhiteElo "1756"]
[BlackElo "2250"]
[Annotator "RC"]
[PlyCount "90"]
[EventDate "2024.04.10"]
[EventType "swiss"]
[EventCountry "ROU"]
[SourceTitle "playchess.com"]
[Source "ChessBase"]
[SourceQuality "1"]
[TimeControl "5400+30"]

1. e4 {[%emt 0:06:31]} e6 2. d4 {[%emt 0:00:30]} d5 3. Nd2 {[%emt 0:00:30]} c5 4. c3 {[%emt 0:00:30]} Nc6 {[%emt 0:11:39]} 5. Ngf3 {[%emt 0:00:30]} cxd4 {[%emt 0:00:30]} 6. cxd4 {[%emt 0:00:30]} dxe4 {[%emt 0:00:30]} 7. Nxe4 {[%emt 0:00:30]} Bb4+ {[%emt 0:00:30]} 8. Bd2 {[%emt 0:00:30]} Bxd2+ {[%emt 0:00:30]} 9. Qxd2 {[%emt 0:00:30]} Nf6 {[%emt 0:00:30]} 10. Bd3 {[%emt 0:00:30]} O-O {[%emt 0:00:30]} 11. O-O {[%emt 0:00:30]} Bd7 {[%emt 0:00:30]} 12. Rfd1 {[%emt 0:00:30]} Nd5 {[%emt 0:00:30]} 13. Ne5 {[%emt 0:00:30]} Qe7 {[%emt 0:00:30]} 14. Rac1 {[%emt 0:00:30]} Rac8 {[%emt 0:00:30]} 15. Nxd7 {[%emt 0:00:30]} Qxd7 {[%emt 0:00:30]} 16. Ng5 {[%emt 0:00:30]} g6 {[%emt 0:00:30]} 17. Nf3 {[%emt 0:00:30]} Qe7 {[%emt 0:00:30]} 18. h4 {[%emt 0:00:30]} Qf6 {[%emt 0:00:30]} 19. Qh6 {[%emt 0:00:30]} Nf4 {[%emt 0:00:30]} 20. Bf1 {[%emt 0:00:30]} Nh3+ {[%emt 0:00:30]} 21. gxh3 {[%emt 0:00:30]} Qxf3 {[%emt 0:00:30]} 22. Bg2 {[%emt 0:00:30]} Qf6 {[%emt 0:00:30]} 23. Qg5 {[%emt 0:00:30]} Qg7 {[%emt 0:00:30]} 24. Qe3 {[%emt 0:00:30]} h5 {[%emt 0:00:30]} 25. Bxc6 {[%emt 0:00:30]} Rxc6 {[%emt 0:00:30]} 26. Rxc6 {[%emt 0:00:30]} bxc6 {[%emt 0:00:30]} 27. Qa3 {[%emt 0:00:30]} Qf6 {[%emt 0:00:30]} 28. Qxa7 {[%emt 0:00:30]} Qf3 {[%emt 0:00:30]} 29. Rc1 {[%emt 0:00:30]} Qxh3 {[%emt 0:00:30]} 30. Rxc6 {[%emt 0:00:30]} Qg4+ {[%emt 0:00:30]} 31. Kf1 {[%emt 0:00:30]} Qxh4 {[%emt 0:00:30]} 32. Qc5 {[%emt 0:00:30]} Qh1+ {[%emt 0:00:30]} 33. Ke2 {[%emt 0:00:30]} Qe4+ {[%emt 0:00:30]} 34. Kd2 {[%emt 0:00:30]} Qb1 {[%emt 0:00:30]} 35. Qa3 {[%emt 0:00:30]} Rd8 {[%emt 0:00:30]} 36. Qc3 {[%emt 0:00:30]} Qxa2 {[%emt 0:00:30]} 37. Rc8 {[%emt 0:00:30]} Rxc8 {[%emt 0:00:30]} 38. Qxc8+ {[%emt 0:00:30]} Kg7 {[%emt 0:00:30]} 39. Qc3 {[%emt 0:00:30]} Qd5 {[%emt 0:00:30]} 40. b4 {[%emt 0:00:30]} h4 {[%emt 0:00:30]} 41. Qd3 {[%emt 0:00:30]} e5 {[%emt 0:00:30]} 42. b5 {[%emt 0:00:30]} exd4 {[%emt 0:00:30]} 43. b6 {[%emt 0:00:30]} Qa5+ {[%emt 0:00:30]} 44. Ke2 {[%emt 0:00:30]} Qxb6 {[%emt 0:00:30]} 45. Qh3 {[%emt 0:00:30]} Qe6+ {[%emt 0:00:30]} 0-1

[Event "Romanian-ch Youth Open U12 2024"]
[Site "Eforie Nord"]
[Date "2024.04.16"]
[Round "6.2"]
[White "Petroff, Vlad"]
[Black "Mihali-Viorescu, Andrei"]
[Result "1-0"]
[ECO "C07"]
[WhiteElo "1999"]
[BlackElo "1813"]
[Annotator "NA RC"]
[PlyCount "59"]
[EventDate "2024.04.10"]
[EventType "swiss"]
[EventCountry "ROU"]
[SourceTitle "playchess.com"]
[Source "ChessBase"]
[SourceQuality "1"]
[TimeControl "5400+30"]

1. e4 {[%emt 0:00:47]} e6 {[%emt 0:00:00]} 2. d4 {[%emt 0:00:30]} d5 {[%emt 0:00:00]} 3. Nd2 {[%emt 0:00:30]} c5 {[%emt 0:00:16]} 4. exd5 {[%emt 0:00:30]} Qxd5 {[%emt 0:00:30]} 5. dxc5 {[%emt 0:00:30]} Bxc5 {[%emt 0:00:30]} 6. Ngf3 {[%emt 0:00:30]} Nf6 {[%emt 0:00:30]} 7. Bc4 {[%emt 0:00:30]} Qd6 {[%emt 0:00:30]} 8. O-O {[%emt 0:00:30]} O-O {[%emt 0:00:30]} 9. Qe2 {[%emt 0:00:30]} Rd8 {[%emt 0:00:30]} 10. Ne4 {[%emt 0:00:30]} Nxe4 {[%emt 0:00:30]} 11. Qxe4 {[%emt 0:00:30]} Qc6 {[%emt 0:00:30]} 12. Qh4 {[%emt 0:00:30]} Qc7 {[%emt 0:00:30]} 13. Bd3 {[%emt 0:00:30]} h6 {[%emt 0:00:30]} 14. Bf4 {[%emt 0:00:30]} Bd6 {[%emt 0:00:30]} 15. Bxd6 {[%emt 0:00:30]} Rxd6 {[%emt 0:00:30]} 16. Rfe1 {[%emt 0:00:30]} Nc6 {[%emt 0:00:30]} 17. Re3 {[%emt 0:00:30]} b6 {[%emt 0:00:30]} 18. Nd2 {[%emt 0:00:30]} Bb7 {[%emt 0:00:30]} 19. Ne4 {[%emt 0:00:30]} Rd7 {[%emt 0:00:30]} 20. Nf6+ {[%emt 0:00:30]} gxf6 {[%emt 0:00:30]} 21. Qxh6 {[%emt 0:00:30]} Rxd3 {[%emt 0:00:30]} 22. Rxd3 {[%emt 0:00:30]} Ne5 {[%emt 0:00:30]} 23. Rg3+ {[%emt 0:00:30]} Ng6 {[%emt 0:00:30]} 24. h4 {[%emt 0:00:30]} Qxc2 {[%emt 0:00:30]} 25. h5 {[%emt 0:00:30]} Be4 {[%emt 0:00:30]} 26. hxg6 {[%emt 0:00:30]} Bxg6 {[%emt 0:00:30]} 27. Rh3 {[%emt 0:00:30]} Bh7 {[%emt 0:00:30]} 28. Rc1 {[%emt 0:00:30]} Qe4 {[%emt 0:00:30]} 29. Rcc3 {[%emt 0:00:30]} Qe1+ {[%emt 0:00:30]} 30. Kh2 {[%emt 0:00:30]} 1-0